bitfinex/quotes_SOLUSD_20250811
["timestamp","ask_amount","ask_price","bid_price","bid_amount"]
[1754871999832,0.55375683,182.87,182.83,0.71]
[1754872000039,6.7868287,182.87,182.82,11.70290033]
[1754872000246,6.7868287,182.87,182.84,0.71]
[1754872000846,6.7868287,182.87,182.82,11.70290033]
[1754872000847,0.55375683,182.87,182.82,11.70290033]
[1754872001064,6.23307187,182.87,182.85,0.71]
[1754872001238,0.55375683,182.86,182.83,0.71]
[1754872002159,0.55375683,182.86,182.84,0.71]
[1754872003560,0.55375683,182.86,182.85,0.71]
[1754872003729,6.23307187,182.87,182.85,0.71]
[1754872003929,0.55375683,182.86,182.85,0.71]
[1754872005263,0.55375683,182.86,182.83,0.71]
[1754872005471,0.55375683,182.86,182.84,0.71]
[1754872005978,1e-08,182.89,182.85,0.71]
[1754872006143,1e-08,182.89,182.88,3.95078208]
[1754872006783,1e-08,182.89,182.88,0.71]
[1754872007882,1e-08,182.89,182.88,6.17806649]
[1754872008083,1e-08,182.89,182.88,25.23506414]
[1754872009371,1e-08,182.89,182.86,15.10621557]
[1754872009572,1e-08,182.89,182.88,0.71]
[1754872010565,1e-08,182.89,182.88,6.17806649]
[1754872011368,1e-08,182.89,182.88,10.12884857]
[1754872011575,1e-08,182.89,182.88,6.17806649]
[1754872012081,1e-08,182.89,182.88,0.71]
[1754872013154,1e-08,182.89,182.88,6.17806649]
[1754872013353,1e-08,182.89,182.88,10.12884857]
[1754872014088,1e-08,182.89,182.88,25.23506414]
[1754872014878,1e-08,182.89,182.88,21.28428206]
[1754872015050,1e-08,182.89,182.88,25.23506414]
[1754872015772,1e-08,182.89,182.88,21.28428206]
[1754872015955,1e-08,182.89,182.88,25.23506414]
[1754872021486,1e-08,182.89,182.85,116.28]
[1754872021695,1e-08,182.89,182.86,55.22621557]
[1754872021880,1e-08,182.89,182.87,4.63078208]
[1754872022284,1e-08,182.89,182.88,0.68]
[1754872022588,1e-08,182.89,182.87,0.68]
[1754872022794,1e-08,182.89,182.87,4.63078208]
[1754872023094,1e-08,182.89,182.88,45.73699765]
[1754872024297,1e-08,182.89,182.88,51.20506414]
[1754872024802,1e-08,182.89,182.88,91.28506414]
[1754872025288,1e-08,182.89,182.88,87.33428206]
[1754872025463,1e-08,182.89,182.88,91.28506414]
[1754872026568,1e-08,182.89,182.88,87.33428206]
[1754872026776,1e-08,182.89,182.88,91.28506414]
[1754872034304,0.03,182.93,182.92,41.10621557]
[1754872034480,0.03,182.93,182.92,84.97699765]
[1754872034687,0.03,182.93,182.92,85.65699765]
[1754872035200,1e-08,182.93,182.92,85.65699765]
[1754872035583,1e-08,182.93,182.92,91.12386841]
[1754872038793,1e-08,182.93,182.92,87.17308633]
[1754872038981,1e-08,182.93,182.92,91.12386841]
[1754872039495,0.19000001,182.99,182.96,26.0]
[1754872039800,4.06962322,182.98,182.91,15.10621557]
[1754872040095,4.06962322,182.98,182.92,39.84]
[1754872040096,3.95078208,182.94,182.92,39.84]
[1754872040476,3.95078208,182.95,182.92,39.84]
[1754872040898,0.55375683,182.99,182.92,39.84]
[1754872041085,3.95078208,182.97,182.92,39.84]
[1754872041411,4.14078208,182.96,182.92,39.84]
[1754872041575,0.19,182.97,182.92,49.93754965]
[1754872041782,0.19,182.96,182.92,45.30676757]
[1754872042403,4.14078208,182.98,182.92,49.93754965]
[1754872042594,4.07207783,182.97,182.93,15.10621557]
[1754872042797,4.07207783,182.97,182.94,39.9]
[1754872042978,0.19,182.96,182.94,39.9]
[1754872044602,3.95078208,182.98,182.94,39.9]
[1754872044907,3.95078208,182.98,182.94,45.36627002]
[1754872044908,4.14078208,182.98,182.94,45.36627002]
[1754872045200,4.14078208,182.98,182.94,39.9]
[1754872045572,3.95078208,182.98,182.94,39.9]
[1754872046292,3.95078208,182.98,182.94,45.36624193]
[1754872046477,3.95078208,182.98,182.94,39.9]
[1754872046679,3.95078208,183.0,182.95,0.68]
[1754872046886,0.74375683,183.04,182.98,3.95078208]
[1754872047074,4.07640494,183.03,182.98,43.79078208]
[1754872047277,8.02718702,183.03,182.98,44.47078208]
[1754872047509,4.07640494,183.02,182.98,44.47078208]
[1754872047877,4.07640494,183.01,182.98,49.2557346]
[1754872048107,3.95078208,183.04,182.99,0.68]
[1754872048411,4.07554141,183.03,183.0,39.82]
[1754872048584,0.84375683,183.06,183.0,39.82]
[1754872048784,8.02762065,183.05,183.0,39.82]
[1754872048996,8.02762065,183.04,183.0,39.82]
[1754872049189,4.07683857,183.03,183.0,40.5]
[1754872049508,4.14078208,183.05,183.0,40.5]
[1754872049709,4.07583042,183.04,183.02,3.95078208]
[1754872050009,0.1,183.06,183.03,10.10417564]
[1754872050309,0.1,183.06,183.04,43.75078208]
[1754872050610,0.1,183.06,183.04,40.49]
[1754872050997,0.1,183.06,183.04,39.8]
[1754872051601,0.29,183.06,183.03,39.78]
[1754872051781,4.24078208,183.06,183.03,39.78]
[1754872051985,8.02302707,183.05,183.03,39.78]
[1754872052184,0.1,183.06,183.01,43.73078208]
[1754872052390,0.1,183.06,183.02,0.69]
[1754872052623,4.05078208,183.06,183.03,0.69]
[1754872052913,4.07118641,183.05,183.01,39.78]
[1754872053104,4.07118641,183.05,183.01,40.47]
[1754872053289,0.1,183.06,183.02,0.69]
[1754872053483,0.1,183.06,183.01,43.73078208]
[1754872053484,0.1,183.06,183.03,4.64078208]
[1754872053714,0.1,183.06,183.03,44.42078208]
[1754872053886,0.1,183.06,183.05,3.95078208]
[1754872054086,0.1,183.06,183.04,10.1039631]
[1754872054281,0.1,183.06,183.04,9.4139631]
[1754872054597,0.1,183.06,183.03,45.93356433]
[1754872054926,3.95078208,183.05,183.03,39.78]
[1754872055209,3.95078208,183.05,183.01,0.69]
[1754872055210,0.1,183.06,183.01,49.88466592]
[1754872055382,0.1,183.06,183.02,4.64078208]
[1754872055582,0.1,183.06,183.03,43.77078208]
[1754872055782,0.1,183.06,183.03,44.46078208]
[1754872056091,0.1,183.06,183.05,3.95078208]
[1754872056304,0.1,183.06,183.04,6.15328671]
[1754872056603,0.1,183.06,183.05,0.69]
[1754872056805,0.1,183.06,183.05,44.48078208]
[1754872057204,0.1,183.06,183.05,40.53]
[1754872058286,0.1,183.06,183.05,49.94377033]
[1754872059716,0.1,183.06,183.05,65.0499859]
[1754872060413,0.1,183.06,183.05,61.09920382]
[1754872060713,0.1,183.06,183.05,65.0499859]
[1754872061018,0.1,183.06,183.05,61.09920382]
[1754872061194,0.1,183.06,183.05,65.1299859]
[1754872061397,0.1,183.06,183.05,65.6299859]
[1754872062611,0.1,183.06,183.05,40.42]
[1754872063125,5.75268982,183.06,182.99,0.06]
[1754872063342,3.95078208,183.01,182.99,0.06]
[1754872063500,0.74375683,183.05,182.99,0.06]
[1754872063826,3.95078208,183.01,182.99,0.06]
[1754872064020,5.46388372,183.02,182.99,0.06]
[1754872064215,5.65388372,183.02,182.99,0.06]
[1754872064402,0.74375683,183.01,182.99,0.06]
[1754872064601,3.95078208,183.0,182.99,0.06]
[1754872064818,4.14078208,183.0,182.99,0.06]
[1754872065023,8.19561901,183.0,182.99,0.06]
[1754872065550,8.19593798,183.0,182.99,0.06]
[1754872066103,9.70963677,183.0,182.99,0.06]
[1754872066400,3.95078208,183.0,182.99,0.06]
[1754872066621,0.55375683,183.01,182.99,0.06]
[1754872066827,3.95078208,183.01,182.99,0.06]
[1754872067023,4.50453891,183.0,182.99,0.06]
[1754872067414,3.95078208,183.01,182.99,0.06]
[1754872067614,0.55375683,183.02,182.99,0.06]
[1754872067811,3.95078208,183.01,182.99,0.06]
[1754872068013,3.95078208,183.02,182.99,0.06]
[1754872069051,3.95078208,183.03,182.99,0.06]
[1754872069226,3.95078208,183.03,182.99,0.75]
[1754872069431,3.95078208,183.01,182.99,0.06]
[1754872069635,4.80279127,183.02,182.99,0.06]
[1754872069636,0.55375683,183.02,182.99,0.06]
[1754872069826,3.95078208,183.02,182.99,0.06]
[1754872071345,3.95078208,183.0,182.99,0.06]
[1754872071518,4.14078208,183.0,182.99,0.06]
[1754872072144,3.95078208,183.01,182.99,0.06]
[1754872072538,3.95078208,183.02,182.99,0.06]
[1754872072846,3.95078208,183.02,182.99,0.75]
[1754872073341,3.95078208,183.03,182.99,0.75]
[1754872074441,0.55375683,183.04,182.99,0.06]
[1754872074442,3.95078208,183.01,182.99,0.06]
[1754872075149,3.95078208,183.0,182.99,0.06]
[1754872076137,0.55375683,183.05,182.99,0.75]
[1754872076346,3.95078208,183.03,182.99,0.75]
[1754872076651,3.95078208,183.0,182.99,0.06]
[1754872078358,9.60526295,183.0,182.99,0.06]
[1754872079230,5.46448087,183.0,182.99,0.06]
[1754872079432,9.41526295,183.0,182.99,0.06]
[1754872079665,9.60526295,183.0,182.99,0.06]
[1754872080248,13.67120602,183.0,182.99,0.06]
[1754872081026,14.22496285,183.0,182.99,0.06]
[1754872081760,29.33117842,183.0,182.99,0.06]
[1754872083455,25.38039634,183.0,182.99,0.06]
[1754872083659,14.03496285,183.0,182.99,0.06]
[1754872083889,10.08418077,183.0,182.99,0.06]
[1754872084164,14.03496285,183.0,182.99,0.06]
[1754872084768,3.95078208,183.0,182.99,0.74]
[1754872084955,3.95078208,183.0,182.99,0.06]
[1754872085641,3.95078208,183.0,182.99,0.74]
[1754872086162,3.95078208,183.01,182.99,0.74]
[1754872086342,3.95078208,183.0,182.99,0.74]
[1754872087149,46.93765632,183.02,182.99,0.06]
[1754872087352,3.95078208,183.0,182.99,0.06]
[1754872087545,46.93765632,183.02,182.99,0.06]
[1754872087749,3.95078208,183.0,182.99,0.06]
[1754872088148,3.95078208,183.0,182.99,0.74]
[1754872089448,46.93765632,183.02,182.99,0.74]
[1754872089653,3.95078208,183.0,182.99,0.74]
[1754872089853,4.50453891,183.0,182.99,0.06]
[1754872090037,8.56943492,183.0,182.99,0.06]
[1754872090944,14.03391579,183.0,182.99,0.06]
[1754872093100,8.01567809,183.0,182.99,0.74]
[1754872093377,50.33471078,183.02,182.99,0.74]
[1754872093556,44.87078208,183.02,182.99,0.74]
[1754872093758,40.92,183.02,182.99,0.74]
[1754872093955,44.87078208,183.02,183.0,0.68]
[1754872094280,44.87078208,183.02,183.01,0.68]
[1754872094747,48.9366402,183.02,183.01,0.68]
[1754872094948,40.92,183.02,183.01,0.68]
[1754872095454,3.95078208,183.03,183.01,0.68]
[1754872095655,3.95078208,183.03,183.02,0.68]
[1754872095846,0.03,183.04,183.02,0.68]
[1754872096053,0.03,183.04,182.99,9.47553446]
[1754872096369,3.98078208,183.04,183.0,0.68]
[1754872096567,3.98078208,183.04,183.01,0.68]
[1754872096755,3.98078208,183.04,183.02,0.68]
[1754872097684,3.98078208,183.04,182.99,0.74]
[1754872097685,4.50453891,183.03,182.99,0.74]
[1754872097970,3.95078208,183.02,183.0,0.68]
[1754872098544,3.95078208,183.02,182.99,0.06]
[1754872098778,3.95078208,183.0,182.99,0.06]
[1754872099459,3.95078208,183.01,182.99,0.74]
[1754872099659,9.41499048,183.01,182.99,0.74]
[1754872100169,3.95078208,183.01,182.99,0.74]
[1754872100772,3.95078208,183.01,183.0,0.68]
[1754872101251,0.03,183.04,183.0,6.14436359]
[1754872101451,0.03,183.04,183.0,10.09514567]
[1754872101770,0.03,183.04,183.01,0.68]
[1754872102671,0.03,183.04,183.02,3.95078208]
[1754872103045,0.03,183.04,183.03,0.68]
[1754872103247,0.03,183.04,183.03,6.1435852]
[1754872103466,0.03,183.04,183.03,10.09436728]
[1754872104960,0.03,183.04,183.03,6.1435852]
[1754872105171,0.03,183.04,183.03,0.68]
[1754872105478,0.03,183.04,183.03,6.1435852]
[1754872105660,0.03,183.04,183.03,0.68]
[1754872105863,0.03,183.04,183.01,0.68]
[1754872105864,3.98078208,183.04,183.01,0.68]
[1754872106163,3.98078208,183.04,182.99,4.01078208]
[1754872106164,3.98078208,183.04,183.02,0.68]
[1754872106375,0.03,183.04,183.02,0.68]
[1754872107370,0.03,183.04,183.03,0.68]
[1754872110656,0.03,183.04,183.03,4.63078208]
[1754872110854,0.03,183.04,183.03,10.09436728]
[1754872111254,0.03,183.04,183.03,6.1435852]
[1754872111477,0.03,183.04,183.03,10.09436728]
[1754872112057,0.03,183.04,183.03,25.20058285]
[1754872112488,0.03,183.04,183.03,66.28694137]
[1754872112658,0.1,183.06,183.05,45.05699765]
[1754872113053,0.1,183.06,183.05,45.77699765]
[1754872113472,1e-08,183.06,183.05,46.32329647]
[1754872114283,1e-08,183.06,183.05,42.37251439]
[1754872114464,1e-08,183.06,183.05,51.78628472]
[1754872115603,1e-08,183.06,183.05,51.2399859]
[1754872116483,1e-08,183.06,183.05,47.28920382]
[1754872116692,1e-08,183.06,183.05,51.2399859]
[1754872119484,1e-08,183.06,183.05,91.6599859]
[1754872119878,0.03,183.11,183.1,15.10621557]
[1754872120174,0.03,183.11,183.1,59.47699765]
[1754872120490,0.03,183.11,183.1,60.19699765]
[1754872121788,0.03,183.11,183.1,65.6584941]
[1754872124774,0.55375683,183.21,183.1,65.6584941]
[1754872124775,0.55375683,183.26,183.14,15.10621557]
[1754872125099,3.95078208,183.19,183.15,40.4]
[1754872125407,4.17078208,183.21,183.15,49.81064434]
[1754872125577,4.17078208,183.24,183.18,3.95078208]
[1754872125775,4.17078208,183.24,183.19,3.95078208]
[1754872126381,3.95078208,183.23,183.17,41.14]
[1754872126595,3.95078208,183.22,183.17,45.09078208]
[1754872126783,4.17078208,183.22,183.18,40.38]
[1754872127375,0.22,183.22,183.18,40.38]
[1754872127575,4.17078208,183.22,183.18,40.38]
[1754872127792,4.17078208,183.21,183.18,40.38]
[1754872127991,4.17078208,183.21,183.17,5.4592464]
[1754872128198,0.22,183.2,183.17,40.38]
[1754872128782,5.4579316,183.22,183.15,10.13072213]
[1754872128783,3.95078208,183.18,183.15,66.4]
[1754872128979,4.17078208,183.19,183.15,40.4]
[1754872129189,3.95078208,183.17,183.13,5.46057237]
[1754872129387,3.95078208,183.17,183.12,6.18082511]
[1754872129592,4.17078208,183.17,183.13,40.38]
[1754872130089,3.95078208,183.17,183.13,40.38]
[1754872130305,0.22,183.19,183.13,40.38]
[1754872130619,3.95078208,183.17,183.13,40.38]
[1754872131007,3.95078208,183.16,183.13,40.38]
[1754872131178,3.95078208,183.17,183.13,40.38]
[1754872131595,3.95078208,183.17,183.13,46.56052996]
[1754872131786,3.95078208,183.18,183.13,46.56052996]
[1754872132000,3.95078208,183.18,183.14,0.72]
[1754872132508,3.95078208,183.18,183.15,0.72]
[1754872132878,3.95078208,183.19,183.16,0.72]
[1754872133192,3.95078208,183.18,183.13,50.51131204]
[1754872133704,0.22,183.19,183.13,46.56052996]
[1754872133906,3.95078208,183.18,183.14,0.72]
[1754872134085,3.95078208,183.18,183.14,6.18011514]
[1754872134399,3.95078208,183.2,183.15,0.72]
[1754872134606,3.95078208,183.2,183.16,0.72]
[1754872135111,3.95078208,183.19,183.14,6.18011514]
[1754872136407,3.95078208,183.19,183.15,0.72]
[1754872136785,5.45853769,183.2,183.15,0.72]
[1754872136986,3.95078208,183.19,183.15,0.72]
[1754872137605,5.67828868,183.21,183.16,0.72]
[1754872137787,3.95078208,183.19,183.16,0.72]
[1754872138585,5.67828868,183.21,183.16,0.72]
[1754872138808,3.95078208,183.19,183.16,0.72]
[1754872139308,3.95078208,183.19,183.14,50.37100045]
[1754872139612,3.95078208,183.19,183.15,0.72]
[1754872140104,5.67827747,183.21,183.15,0.72]
[1754872140413,3.95078208,183.19,183.15,0.72]
[1754872140787,3.95078208,183.17,183.14,40.24]
[1754872141194,3.95078208,183.16,183.14,40.24]
[1754872141406,0.22,183.16,183.11,6.18111815]
[1754872141708,3.95078208,183.13,183.1,26.0]
[1754872141913,3.95078208,183.13,183.1,26.72]
[1754872142115,3.95078208,183.13,183.11,0.06]
[1754872142296,0.22,183.15,183.11,0.06]
[1754872142611,3.95078208,183.15,183.12,0.72]
[1754872143011,3.95078208,183.13,183.11,0.06]
[1754872143200,3.95078208,183.12,183.11,0.06]
[1754872145203,13.64777814,183.18,183.11,0.06]
[1754872145204,0.55375683,183.17,183.11,0.06]
[1754872145409,4.06156885,183.16,183.11,0.06]
[1754872145601,4.50453891,183.2,183.15,3.95078208]
[1754872145799,9.96329685,183.2,183.15,0.72]
[1754872146114,4.06039895,183.19,183.15,0.72]
[1754872146329,3.95078208,183.18,183.13,0.72]
[1754872146617,3.95078208,183.15,183.11,0.06]
[1754872146821,4.06039895,183.14,183.11,0.06]
[1754872147119,4.06039895,183.14,183.11,0.78]
[1754872147323,9.96445923,183.16,183.11,0.78]
[1754872147620,4.06337537,183.15,183.11,4.73078208]
[1754872148131,4.06337537,183.15,183.11,0.78]
[1754872148631,8.01415745,183.15,183.11,0.78]
[1754872148797,4.06337537,183.14,183.11,0.78]
[1754872148991,3.95078208,183.15,183.11,0.78]
[1754872149192,4.06574562,183.14,183.11,0.06]
[1754872149389,8.57028453,183.14,183.11,0.06]
[1754872149617,4.06574562,183.13,183.11,0.06]
[1754872149925,3.95078208,183.17,183.12,4.67078208]
[1754872150229,4.06627218,183.16,183.12,4.67078208]
[1754872150589,4.72453891,183.17,183.12,0.72]
[1754872150812,4.06736567,183.16,183.12,0.72]
[1754872151688,4.06736567,183.16,183.12,6.18079793]
[1754872152109,4.06736567,183.16,183.12,10.13158001]
[1754872152306,9.40992904,183.18,183.12,10.13158001]
[1754872152307,4.07079833,183.15,183.13,0.72]
[1754872152508,3.95078208,183.17,183.13,0.72]
[1754872152794,4.07066518,183.16,183.13,0.72]
[1754872153297,4.07066518,183.15,183.13,0.72]
[1754872153496,3.95078208,183.17,183.13,0.72]
[1754872153708,4.07263504,183.16,183.13,0.72]
[1754872153914,8.02341712,183.16,183.11,10.19195896]
[1754872154227,4.07263504,183.15,183.11,10.19195896]
[1754872154406,3.95078208,183.14,183.11,0.06]
[1754872154808,8.79954649,183.13,183.11,0.06]
[1754872155014,4.07500758,183.12,183.11,0.06]
[1754872155721,8.02578966,183.14,183.11,0.06]
[1754872155931,4.62876441,183.13,183.11,0.06]
[1754872156100,4.07500758,183.12,183.11,0.06]
[1754872156933,8.02578966,183.12,183.11,0.06]
[1754872157313,4.07500758,183.12,183.11,0.06]
[1754872157936,3.95078208,183.14,183.11,0.06]
[1754872158138,4.07897677,183.13,183.11,0.06]
[1754872158537,4.07897677,183.13,183.11,0.78]
[1754872158936,4.07897677,183.13,183.11,0.06]
[1754872159543,4.07897677,183.13,183.12,4.67078208]
[1754872159713,3.95078208,183.17,183.12,0.72]
[1754872159911,4.07906778,183.16,183.12,4.67078208]
[1754872160113,4.07906778,183.15,183.13,0.72]
[1754872160312,4.07906778,183.14,183.13,0.72]
[1754872160510,9.96371459,183.18,183.13,0.72]
[1754872160716,4.0793685,183.17,183.13,0.72]
[1754872160914,4.0793685,183.16,183.13,0.72]
[1754872161132,4.0793685,183.15,183.13,0.72]
[1754872161331,9.96371459,183.18,183.13,0.72]
[1754872161652,4.07980785,183.17,183.13,0.72]
[1754872161827,4.07980785,183.16,183.13,0.72]
[1754872162026,4.07980785,183.15,183.13,0.72]
[1754872162337,4.07980785,183.14,183.13,0.72]
[1754872162511,4.07980785,183.17,183.13,0.72]
[1754872162712,4.07980785,183.16,183.13,0.72]
[1754872163024,4.07980785,183.15,183.13,0.72]
[1754872163224,4.07980785,183.14,183.13,0.72]
[1754872163421,4.07980785,183.16,183.13,0.72]
[1754872163738,4.07980785,183.15,183.13,0.72]
[1754872163909,4.07980785,183.14,183.13,0.72]
[1754872164721,4.07980785,183.16,183.13,0.72]
[1754872164920,4.07980785,183.15,183.13,0.72]
[1754872165140,4.07980785,183.14,183.13,0.72]
[1754872165536,4.07980785,183.16,183.13,0.72]
[1754872165746,4.07980785,183.15,183.13,0.72]
[1754872165916,4.07980785,183.14,183.13,0.72]
[1754872166517,4.07980785,183.16,183.13,0.72]
[1754872166745,4.07980785,183.15,183.14,0.72]
[1754872167143,4.07980785,183.15,183.12,5.46082783]
[1754872167339,4.07980785,183.14,183.13,0.72]
[1754872167520,4.07980785,183.16,183.13,0.72]
[1754872167845,4.07980785,183.15,183.13,0.72]
[1754872168047,4.07980785,183.14,183.13,0.72]
[1754872168242,4.07980785,183.16,183.13,0.72]
[1754872168429,4.08212672,183.15,183.13,0.72]
[1754872168633,4.08212672,183.14,183.13,0.72]
[1754872169334,4.08212672,183.16,183.13,0.72]
[1754872169541,4.08212672,183.15,183.13,0.72]
[1754872169750,4.08212672,183.14,183.13,0.72]
[1754872169928,4.08212672,183.16,183.13,0.72]
[1754872170128,4.08212672,183.15,183.13,0.72]
[1754872170323,3.98078208,183.17,183.13,0.72]
[1754872170629,8.03328699,183.16,183.13,0.72]
[1754872170823,4.08250491,183.15,183.13,0.72]
[1754872171133,4.08250491,183.14,183.13,0.72]
[1754872171342,4.08250491,183.15,183.13,0.72]
[1754872171525,4.08250491,183.14,183.13,0.72]
[1754872172143,4.08250491,183.15,183.13,0.72]
[1754872172352,4.08250491,183.14,183.13,0.72]
[1754872172532,4.08250491,183.14,183.13,6.18059425]
[1754872172737,4.08250491,183.15,183.13,6.18059425]
[1754872172937,4.08250491,183.14,183.13,9.41137633]
[1754872173150,0.03,183.17,183.13,9.41137633]
[1754872173444,4.08433813,183.16,183.14,0.68]
[1754872173651,4.08433813,183.15,183.14,0.68]
[1754872173835,4.08433813,183.15,183.13,9.41137633]
[1754872174036,0.03,183.17,183.13,9.41137633]
[1754872174230,4.085306,183.16,183.13,9.41137633]
[1754872174431,4.085306,183.15,183.14,6.14030359]
[1754872176530,4.08581995,183.15,183.14,6.14030359]
[1754872178447,4.08581995,183.15,183.14,10.09108567]
[1754872179444,0.03,183.17,183.14,10.09108567]
[1754872179646,4.08603914,183.16,183.15,3.95078208]
[1754872179955,4.08603914,183.16,183.15,4.63078208]
[1754872180152,4.08603914,183.16,183.15,0.68]
[1754872180336,4.08603914,183.16,183.15,4.63078208]
[1754872180939,4.08603914,183.16,183.15,10.09078754]
[1754872181136,4.08603914,183.16,183.15,6.14000546]
[1754872181633,4.08603914,183.16,183.15,10.09078754]
[1754872181836,0.03,183.17,183.15,25.19700311]
[1754872182145,0.03,183.17,183.16,4.63078208]
[1754872183047,0.03,183.17,183.16,10.09048943]
[1754872185135,0.03,183.17,183.16,6.13970735]
[1754872185429,0.03,183.17,183.16,10.09048943]
[1754872186938,0.03,183.17,183.15,3.95078208]
[1754872187137,0.03,183.17,183.14,10.09108567]
[1754872187350,0.03,183.17,183.13,3.95078208]
[1754872187533,0.03,183.17,183.12,39.78]
[1754872187534,8.28256854,183.17,183.12,4.63078208]
[1754872187742,4.20078208,183.17,183.12,0.68]
[1754872188055,0.25,183.17,183.12,4.63078208]
[1754872188451,0.25,183.17,183.13,6.14052715]
[1754872188850,0.25,183.17,183.13,0.68]
[1754872189045,0.25,183.17,183.12,9.41160473]
[1754872189450,4.082494,183.16,183.12,10.09160473]
[1754872189767,4.20078208,183.17,183.12,10.09160473]
[1754872189942,4.08241663,183.16,183.12,10.09160473]
[1754872190545,8.25319871,183.16,183.11,0.06]
[1754872190862,8.25319871,183.15,183.11,0.06]
[1754872191159,4.08241663,183.14,183.11,0.06]
[1754872191363,4.08241663,183.14,183.12,0.68]
[1754872191541,9.99396861,183.17,183.12,4.63078208]
[1754872191741,4.08305832,183.16,183.12,4.63078208]
[1754872191952,4.08305832,183.15,183.13,0.68]
[1754872192157,9.99396861,183.17,183.13,0.68]
[1754872192352,4.08327868,183.16,183.13,0.68]
[1754872192550,4.08327868,183.15,183.13,0.68]
[1754872192751,0.58375683,183.17,183.13,0.68]
[1754872193042,4.30328113,183.16,183.11,5.52118645]
[1754872193241,4.08328113,183.15,183.11,9.47196853]
[1754872193441,4.08328113,183.14,183.12,0.68]
[1754872193666,9.99395951,183.17,183.12,0.68]
[1754872193877,4.0834585,183.16,183.12,4.63078208]
[1754872194164,4.0834585,183.15,183.13,0.68]
[1754872194346,4.53453891,183.17,183.13,0.68]
[1754872194557,4.08362678,183.16,183.13,0.68]
[1754872194750,4.08362678,183.15,183.13,0.68]
[1754872194951,4.53453891,183.17,183.12,9.41143322]
[1754872194952,0.03,183.17,183.12,9.41143322]
[1754872195161,4.08362681,183.16,183.14,0.68]
[1754872195361,4.08362681,183.15,183.14,0.68]
[1754872195959,4.08362681,183.15,183.12,10.09143322]
[1754872196173,0.58375683,183.17,183.12,10.09143322]
[1754872196391,4.08359198,183.16,183.12,10.09143322]
[1754872196573,4.08359198,183.15,183.12,10.09143322]
[1754872196752,4.08401795,183.14,183.12,0.68]
[1754872196953,9.99397397,183.17,183.12,0.68]
[1754872197153,4.08388879,183.16,183.12,0.68]
[1754872197377,10.21397397,183.17,183.12,0.68]
[1754872197378,4.08388879,183.15,183.12,0.68]
[1754872197579,10.21397397,183.17,183.12,0.68]
[1754872197772,4.08391559,183.16,183.12,0.68]
[1754872197973,4.08391559,183.15,183.12,0.68]
[1754872198282,10.21397397,183.17,183.12,0.68]
[1754872198483,4.08394445,183.16,183.12,0.68]
[1754872198785,4.08394445,183.15,183.12,0.68]
[1754872198959,10.21397397,183.17,183.12,0.68]
[1754872199159,4.083942,183.16,183.12,0.68]
[1754872199377,4.083942,183.15,183.12,0.68]
[1754872199575,10.21397397,183.17,183.12,0.68]
[1754872199755,4.30400786,183.16,183.11,9.47189162]
[1754872199955,4.08400786,183.15,183.12,0.71]
[1754872200153,4.08437074,183.14,183.11,0.06]
[1754872200356,3.95078208,183.12,183.11,0.06]
[1754872200568,8.03515282,183.12,183.09,0.06]
[1754872200760,3.95078208,183.1,183.07,0.06]
[1754872201063,4.63812757,183.09,183.07,0.06]
[1754872201268,4.08437074,183.08,183.07,4.72078208]
[1754872201467,6.0148727,183.12,183.07,4.72078208]
[1754872201670,4.08406546,183.11,183.07,0.06]
[1754872201969,4.08406546,183.1,183.09,3.95078208]
[1754872202364,39.78,183.13,183.09,3.95078208]
[1754872202687,39.78,183.13,183.11,3.95078208]
[1754872202688,4.08347393,183.12,183.11,3.95078208]
[1754872203200,5.48945951,183.17,183.11,4.66078208]
[1754872203371,4.08313585,183.16,183.12,0.71]